Cogmind - Beta 13 @@@ ROGUE MODE // 2024.04.06 @ 23:34:01 Player: michaelman Result: Self-destructed Performance ------------- Evolutions (1) 500 Regions Visited (2) 400 Robots Destroyed (15) 75 Value Destroyed (531) 531 Prototype IDs (0) 0 Alien Tech Used (0) 0 Bonus (0) 0 TOTAL SCORE: 1506 Bonus ------- None Cogmind --------- Core Integrity 28/400 Matter 300/300 Energy 250/250 System Corruption 0% Temperature Cool (0) Movement Walking (190) Ox1 Location -9/Materials Parts ------- > --- POWER (1) -------- Ion Engine > --- PROPULSION (2) --- Aluminum Leg > --- UTILITY (4) ------ Small Storage Unit Signal Interpreter > --- WEAPON (2) ------- Beam Rifle Spread Laser > --- INVENTORY (8) ---- Beam Rifle Particle Cannon Particle Cannon Peak State ------------ > --- POWER ------------ Light Ion Engine > --- PROPULSION ------- Aluminum Leg Aluminum Leg > --- UTILITY ---------- Heat Sink Small Storage Unit Signal Interpreter > --- WEAPON ----------- Medium Laser Beam Rifle > --- INVENTORY -------- Aluminum Leg Beam Rifle Beam Rifle Beam Rifle Spread Laser Particle Cannon [Rating: 10] Favorites ----------- Power Ion Engine Engine Ion Engine Propulsion Aluminum Leg Leg Aluminum Leg Utility Small Storage Unit Device Heat Sink Storage Small Storage Unit Processor Signal Interpreter Weapon Beam Rifle Energy Gun Beam Rifle Build | -11 -10 -9 ------- Run | Yrd Mat Mat Slots Evolved 2 | . . 2 Power . | . . . Propulsion . | . . . Utility 2 | . . 2 Weapon . | . . . Parts Attached 21 | 6 6 9 Power 3 | 1 1 1 Engine 3 | 1 1 1 Core . | . . . Reactor . | . . . Propulsion 5 | 2 2 1 Treads . | . . . Leg 5 | 2 2 1 Wheel . | . . . Hover . | . . . Flight . | . . . Utility 4 | 1 1 2 Device 1 | . . 1 Storage 2 | 1 . 1 Processor 1 | . 1 . Hackware . | . . . Protection . | . . . Artifact . | . . . Weapon 9 | 2 2 5 Energy Gun 9 | 2 2 5 Energy Cannon . | . . . Ballistic Gun . | . . . Ballistic Cannon . | . . . Launcher . | . . . Special Weapon . | . . . Impact Weapon . | . . . Slashing Weapon . | . . . Piercing Weapon . | . . . Special Melee Weapon . | . . . Unidentified Prototypes . | . . . Parts Lost 8 | . 2 6 Power 2 | . 1 1 Propulsion 2 | . 1 1 Utility 1 | . . 1 Weapon 3 | . . 3 Highest Loss Streak 2 | . 2 2 To Critical Strikes . | . . . Average Slot Usage (%) 73 | . 83 69 Engine 10 | . 13 9 Leg 16 | . 22 13 Device 1 | . . 2 Storage 11 | . 14 11 Processor 8 | . 3 11 Energy Gun 23 | . 28 21 Naked Turns . | . . . Heaviest Build 16 | 14 14 16 Greatest Support 20 | 20 20 20 Greatest Overweight (x) 4 | . 4 2 Average Overweight (x) . | . 1 . Largest Inventory Capacity 8 | 8 8 8 Average Capacity 7 | 7 8 8 Most Carried 7 | 4 6 7 Average Carried 3 | 2 3 3 Final Capacity 8 | 8 8 8 Final Carried 4 | 2 4 3 Class Distribution -------------------- 100% | Mutant Dominant Class ---------------- Mutant | -10/Materials Mutant | -9/Materials Resources | -11 -10 -9 ----------- Run | Yrd Mat Mat Matter Collected 488 | 233 90 165 Remotely . | . . . Salvage Created 632 | 24 108 500 Parts 17 | . 2 15 Haulers Intercepted . | . . . Recyclers Shooed 1 | . . 1 Parts Field Recycled . | . . . Retrieved Matter . | . . . Parts Self-Destructed . | . . . Prevented . | . . . Kills | -11 -10 -9 ------- Run | Yrd Mat Mat Combat Hostiles Destroyed 13 | . 2 11 Guns 12 | . 2 10 Classes Destroyed 5 | 1 2 2 Worker 1 | 1 . . Watcher 1 | . 1 . Grunt 9 | . 2 7 Duelist 1 | . . 1 Sentry 3 | . . 3 Best Kill Streak 3 | 1 1 3 Combat Bots Only 3 | . 1 3 Max Kills in Single Turn 1 | 1 1 1 Gunslinging . | . . . Exploded . | . . . Melee . | . . . Uniques/NPCs Destroyed . | . . . Combat | -11 -10 -9 -------- Run | Yrd Mat Mat Hostile Shots Fired 136 | . 24 112 Missed 29 | . 4 25 Damage Taken 1511 | . 303 1208 Core 426 | . 54 372 Absorbed by Shields . | . . . Core Remaining (%) 89 | 100 78 . Volleys Fired 64 | 1 22 41 Largest 2 | 2 2 2 Hottest 121 | 100 106 121 Shots Fired 110 | 2 37 71 Gun 110 | 2 37 71 Cannon . | . . . Launcher . | . . . Special . | . . . Kinetic . | . . . Thermal 110 | 2 37 71 Explosive . | . . . Electromagnetic . | . . . Robot Hit Streak 12 | 1 5 12 Robot Miss Streak 3 | 1 3 2 Penetration Max . | . . . Secondary Targets . | . . . Shots Hit Robots 78 | 1 23 54 Core Hits 32 | 1 6 25 Critical Kills . | . . . Critical Parts Destroyed . | . . . Critical Strikes 7 | 1 2 4 Burn 7 | 1 2 4 Melee Attacks . | . . . Impact . | . . . Slashing . | . . . Piercing . | . . . Sneak Attacks . | . . . Combat Hostiles . | . . . Follow-up Attacks . | . . . Damage Inflicted 1072 | 12 291 769 Guns 1066 | 12 291 763 Cannons . | . . . Explosions . | . . . Melee . | . . . Ramming 6 | . . 6 Kinetic . | . . . Thermal 1066 | 12 291 763 Explosive . | . . . Electromagnetic . | . . . Impact . | . . . Slashing . | . . . Piercing . | . . . Highest Corruption . | . . . Average Corruption . | . . . Corruption Purged . | . . . Corruption Blocked . | . . . Overload Shots . | . . . Overflow Damage . | . . . Projectiles . | . . . Explosions . | . . . Melee . | . . . Knockbacks . | . . . Impact . | . . . Kinetic . | . . . Secondary . | . . . Self-Inflicted Damage . | . . . Shots . | . . . Rammed . | . . . Targets Rammed 1 | . . 1 Kicked 1 | . . 1 Crushed . | . . . Highest Temperature 593 | 39 593 416 Average Temperature 185 | 26 271 133 Received Heat Transfer 708 | . 210 498 Effects 16 | . 13 3 Shutdowns 5 | . 4 1 Energy Bleed 1 | . 1 . Interference 2 | . 2 . Matter Decay 2 | . 1 1 Short Circuit 4 | . 3 1 Damage (minor) 2 | . 2 . Siege Activations . | . . . Robots Corrupted . | . . . Combat Hostiles . | . . . Parts Fried . | . . . Impact Corruptions . | . . . Robots Melted 1 | . . 1 Combat Hostiles 1 | . . 1 Parts Melted 7 | . 1 6 Heat Transferred 3316 | 111 999 2206 Parts Sabotaged . | . . . Parts Stolen . | . . . Parts Stripped . | . . . Power Chain Reactions . | . . . Alert | -11 -10 -9 ------- Run | Yrd Mat Mat Peak Influence 150 | 5 70 150 Initial 12 | . 3 12 Average 60 | . 39 76 Maximum Alert Level . | . . . Low Security (%) 100 | 100 100 100 Level 1 . | . . . Level 2 . | . . . Level 3 . | . . . Level 4 . | . . . Level 5 . | . . . High Security . | . . . Max Security . | . . . Squads Dispatched 1 | . . 1 Investigation . | . . . Extermination . | . . . Reinforcement 1 | . . 1 Assault . | . . . Garrison . | . . . Intercept . | . . . Searches Triggered . | . . . Construction Impeded . | . . . Haulers Reinforced . | . . . Active Scanning Responses . | . . . Cargo Convoy Interrupts . | . . . Stealth | -11 -10 -9 --------- Run | Yrd Mat Mat Distress Signals 1 | . . 1 Communications Jammed . | . . . Distress Signals . | . . . Times Spotted 26 | . 6 20 Peak Tracking Total 5 | . 3 5 Tactical Retreats 2 | . . 2 Traps | -11 -10 -9 ------- Run | Yrd Mat Mat Traps Triggered . | . . . Indirectly . | . . . Trap Hack Attempts . | . . . Triggered . | . . . Disarmed . | . . . Reprogrammed . | . . . Reused . | . . . Traps Extracted . | . . . Installed . | . . . Triggered . | . . . Machines | -11 -10 -9 ---------- Run | Yrd Mat Mat Machines Disabled . | . . . Max in Single Turn . | . . . Machines Repaired . | . . . Machines Dismantled . | . . . Machines Sabotaged . | . . . Overloaded Fab Kills . | . . . Hacking | -11 -10 -9 --------- Run | Yrd Mat Mat Machines Accessed 4 | . 2 2 Terminals 4 | . 2 2 Fabricators . | . . . Repair Stations . | . . . Recycling Units . | . . . Scanalyzers . | . . . Garrison Access . | . . . Total Hacks 7 | . 3 4 Successful 5 | . 3 2 Failed 2 | . . 2 Catastrophic . | . . . Database Lockouts . | . . . Manual . | . . . Terminals 7 | . 3 4 Fabricators . | . . . Repair Stations . | . . . Recycling Units . | . . . Scanalyzers . | . . . Garrison Access . | . . . Terminal Hacks 5 | . 3 2 Emergency Access Points 1 | . . 1 Alert Level 1 | . 1 . Hauler Manifests 1 | . 1 . Zone Layout 2 | . 1 1 Fabricator Hacks . | . . . Repair Station Hacks . | . . . Recycling Unit Hacks . | . . . Scanalyzer . | . . . Garrison Access Hacks . | . . . Unauthorized Hacks . | . . . Terminals . | . . . Fabricators . | . . . Repair Stations . | . . . Recycling Units . | . . . Scanalyzers . | . . . Garrison Access . | . . . Data Cores Recovered . | . . . Used . | . . . Hacking Detections 3 | . 1 2 Full Trace Events . | . . . Feedback Events . | . . . Feedback Blocked . | . . . Robot Schematics Acquired . | . . . Robots Built . | . . . Authchips . | . . . Time . | . . . Total Robot Build Rating . | . . . Part Schematics Acquired . | . . . Parts Built . | . . . Authchips . | . . . Time . | . . . Total Part Build Rating . | . . . Parts Repaired . | . . . Time . | . . . Parts Recycled . | . . . Recycled Matter . | . . . Retrieved Matter . | . . . Retrieved Components . | . . . Parts Scanalyzed . | . . . Part Schematics Acquired . | . . . Parts Damaged . | . . . Bothacking | -11 -10 -9 ------------ Run | Yrd Mat Mat Used RIF Installer . | . . . Robots Hacked . | . . . Non-combat . | . . . Combat . | . . . Robot Hacks Applied . | . . . Relay Couplers Released . | . . . Fabnet Peak Effective % . | . . . Robots Rewired . | . . . Allies Hacked . | . . . Hacks Repelled . | . . . Allies | -11 -10 -9 -------- Run | Yrd Mat Mat Total Allies . | . . . Largest Group . | . . . Highest-Rated Group . | . . . Highest-Rated Ally . | . . . Total Orders . | . . . Ally Attacks . | . . . Total Damage . | . . . Kills . | . . . Allies Corrupted . | . . . Allies Melted . | . . . Intel | -11 -10 -9 ------- Run | Yrd Mat Mat Robot Analysis Total . | . . . Derelict Logs Recovered . | . . . Drone Launches . | . . . Drone Recoveries . | . . . Exploration | -11 -10 -9 ------------- Run | Yrd Mat Mat Turns Passed 1833 | 104 566 1163 Spaces Moved 987 | 77 284 626 Core 97 | 6 85 6 Treads . | . . . Legs 890 | 71 199 620 Wheels . | . . . Hover . | . . . Flight . | . . . Fastest Speed 50 | 50 120 120 Average Speed 161 | 114 172 162 Slowest Speed 250 | 120 250 190 Overloaded Moves . | . . . Propulsion Burnouts . | . . . Robots Hopped . | . . . Cave-ins Triggered . | . . . Exploration Rate (%) 31 | 5 34 54 Regions Visited 2 Branch Regions . Pre-discovered Areas . | . . . Known Exits Taken 1 | . 1 . Unknown Exits Taken 1 | 1 . . Scrap Searched . | . . . Spaces Dug . | . . . Terrain Destroyed . | . . . Melee . | . . . Projectile . | . . . AOE . | . . . Terrain Rammed . | . . . Walls Destroyed . | . . . Machines Disabled . | . . . Actions | -11 -10 -9 --------- Run | Yrd Mat Mat Total 1114 | 91 322 701 Wait 14 | . . 14 Move 985 | 76 283 626 Hop . | . . . Pick Up 24 | 8 8 8 Fast Attach . | . . . Attach 16 | 6 3 7 Detach . | . . . Swap 5 | . 3 2 Drop 5 | . 3 2 Fire 64 | 1 22 41 Melee . | . . . Ram . | . . . Kick 1 | . . 1 Crush . | . . . Escape Stasis . | . . . Rewire . | . . . Trap . | . . . Miscellaneous . | . . . Route ------- -11/Scrapyard -10/Materials -9/Materials (discovered 1 exit: *Mat) History --------- Turn | Location | Event 11 | -11/Scrapyard | Discovered new exit (range 15) 105 | -11/Scrapyard | Entered Materials 311 | -10/Materials | Build established: Mutant 585 | -10/Materials | Discovered new exit (range 16) 670 | -10/Materials | Identified exit to Materials 671 | -10/Materials | Entered another Materials area 671 | -9/Materials | Evolved 2 slots: Utility x2 1123 | -9/Materials | Core integrity fell below 50% 1514 | -9/Materials | Discovered new exit (range 12) 1568 | -9/Materials | Identified exit to Materials 1740 | -9/Materials | Core integrity fell below 20% 1834 | -9/Materials | Self-destructed Last Messages --------------- 01498_ Overheating: Short circuit. 01503_ G-47 Trooper heat short circuits Aluminum Leg. 01504_ R-06 Scavenger collects Heat Sink. 01508_ Melted Aluminum Leg. 01508_ G-47 Trooper overheating. 01511_ G-47 Trooper heat damages Particle Gun. 01511_ Imp. Heat Sink melted. 01511_ G-47 Trooper destroyed. 01514_ Acquired 20 matter. 01514_ EXIT=FOUND 01515_ Power failure, Ion Engine shutdown. 01516_ Overheating: Matter decay (-45). 01516_ Acquired 12 matter. 01523_ Acquired Beam Rifle. 01536_ Acquired 33 matter. 01537_ K-01 Serf collects debris. 01568_ EXIT=IDENTIFIED: MATERIALS 01600_ Acquired Particle Cannon. 01601_ Dropped Broken Beam Rifle. Map ----- +----------------------------------------------------+ | ??????????????????????????????????????# ####% | | ??????????????????????????????????????## ##??# | | ??????????????????????????????????###### #???# | | ??????????????????????????????????# # #???# | | ???????????????????????????????????# #???# | | ???????????????????????????????????# # #???# | | ???????????????????????????????????##### #??## | | ????????????????????????????????######## #??# | | ????????????????????????????##### # #??# | | ????????????????????######### #!] # #??# T | | ????????????????????# ## #] # #??# | | ????????????????????# ## # ! + #??# | | ????????????????????# ## # # #??## | | ????????????????????# =] ## =!# [ # #???# | | ????????????????????# =] ## !!######## ##??# | | ????????????????????# = ## #?????# #??# | | ?????????????????#########+####/####### #??# | | ???????????# ^ k #??# | | ?????????????????######## ######+## #??# | | ????????????????????????# k ## ## #??# | | ????????????????????????# ## ! ########??# | | ????????????????????????# ## #?????????# | | ????????????????????????# ## """ #?????????# | | ????????????????????????# ## """ ########??# | | ????????????????????????# ## """ # # | | ????????????????????????#@ ## # """ # | | ????????????????????????# ######## """ # T | | ????????????????????????# ######## """ # | | ????????????????????????# # # | | ????????????????######### # """ ## | | ???????????# + """ ## | | ????????????????######## # """ ## | | ???????????????????????# a """" # ## | | ???????????????????????# """"Y ########### | | ???????????????????????# """" # # | | ???????????????????????# # # | | ???????????????????????# t# """ """ # | | ???????????????????????# + """ """ # | | ???????????????????????# #### """ """ # | | ?????????????########### " " #??# + | | ?????????????# | # "T" #??#| # | | ????????####?# # """ #??# # | | ?# ##### # """ """ # ############## | | ?# # """ """ # + ## | | ?# / """ """ # ###### ## | | ??????### # # #????#] ## | | ????????## ??# # #????# ## | | ?????????????# ### ######## ## | | ?????????????####/######## # # +% | | ????????????????# # """ # # """ [# ## | +----------------------------------------------------+ Best States ------------- Heat Dissipation 38 Energy Generation 10 Energy Capacity 250 Matter Stores 300 Matter Capacity 300 Sight Range 16 Terrain Scan Density 10 Evasion (%) 55 Item Schematics ----------------- None Robot Schematics ------------------ None Fabricated ------------ Nothing Alien Tech Used ----------------- None Achievements -------------- None Challenges ------------ None Game ------ Seed FluxSupercompositeBattery Manual? 0 Play Time 00:19:55 Cumulative 4.5 hours Start 2024.04.06 @ 23:14:24 End 2024.04.06 @ 23:34:01 Sessions 1 Manual Loads 0 Difficulty Rogue Special Mode None Game No. 9 Rogue 9 Adventurer 0 Explorer 0 Win Type - Total 0 Types 0/0/0/0/0/0/0/0/0 Lore% 3 Gallery% 7 Achievement% 10 Wizard Run 0 Options --------- Layout 1 ASCII 0 Keyboard 0 Movement Mouse Keybinds 0 Fullscreen 1 Font 24/Swanston Map View 50x35 Zoom Use 0% Tactical HUD 1 Map Filters NONE Filters NONE Steam 1 RUN: 16d2038d-e449-4219-b355-49a7b5c42e17